{"text_format":"1","workbook":"xlsx","n_sheets":3,"sheets":["CERTIFICACIÓN","RELACIÓN VALORADA","FINAL"],"not_rendered":{"charts":0,"images":1,"macros":1,"external_links":0,"defined_names":2,"comments":0,"pivot_tables":0},"unopened":[],"bounds":{"document_bytes":16777216,"sheet_cells":100000,"rows_first":2000,"rows_last":500,"rows_between":2000,"halvings":0,"cell_chars":16384,"cell_head_chars":4096},"cells_cut":0,"cells_raw":0,"read":"whole","date_system":"1900"}

{"sheet":"CERTIFICACIÓN","index":0,"n_rows":59,"n_cols":13,"rows_kept":59,"cut":false,"hidden":false,"merged":[[30,4,30,5],[30,6,30,7],[5,0,61,0],[56,1,56,5],[20,8,20,9],[21,8,21,9],[22,8,22,9],[28,2,28,3],[23,1,23,12],[24,1,24,9],[28,8,28,9],[29,8,29,9],[36,9,36,10],[34,2,34,12],[36,1,36,6],[36,7,36,8],[37,2,37,11],[39,1,39,12],[5,1,5,12],[19,2,19,3],[19,4,19,5],[19,6,19,7],[20,2,20,3],[20,6,20,7],[16,4,17,5],[16,6,17,7],[18,4,18,5],[18,6,18,7],[18,2,18,3],[8,1,8,12],[9,2,9,10],[10,2,10,10],[11,2,11,10],[12,1,12,2],[0,1,3,1],[0,2,0,3],[1,2,1,3],[2,2,2,3],[3,2,3,3],[12,3,12,4],[12,8,12,10],[13,1,13,12],[14,1,14,12],[15,1,15,12],[20,4,20,5],[33,1,33,12],[26,2,26,3],[25,1,25,9],[27,1,27,9],[32,1,32,12],[22,1,22,3],[22,4,22,5],[22,6,22,7],[21,4,21,5],[21,6,21,7],[21,2,21,3],[29,4,29,5],[29,6,29,7],[17,10,19,10],[17,8,17,9],[18,8,18,9],[19,8,19,9],[16,1,17,3],[41,1,42,1],[41,2,41,5],[41,10,41,12],[42,2,42,5],[42,10,42,12],[41,6,41,9],[42,6,42,9],[44,2,44,5],[44,10,44,12],[43,6,43,9],[44,6,44,9],[43,2,43,5],[43,10,43,12],[45,6,45,9],[46,6,46,9],[56,6,56,12],[57,1,57,2],[49,11,49,12],[51,1,51,12],[52,1,52,4],[52,6,52,11],[49,1,49,9],[45,2,45,5],[45,10,45,12],[46,2,46,5],[46,10,46,12]]}
[]
[]
[]
[]
[]
["Conforme o disposto na Lei orgánica 15/1999, do 13 de decembro, de protección de datos de carácter persoal, os seus datos serán tratados de xeito confidencial. Poderán ser incorporados ós ficheiros dos departamentos da Deputación Provincial de Pontevedra e a outros relacionados con este trámite. En calquera momento poderá exercitar os dereitos de acceso, cancelación, rectificación e oposición comunicándoo mediante escrito, que deberá presentar no Rexistro da Deputación.","CERTIFICACIÓN DE OBRA"]
[]
[]
[null,"1. DATOS DA OBRA"]
[null,"Adxudicatario:",null,null,null,null,null,null,null,null,null,"NIF:"]
[null,"Denominación do plan:",null,null,null,null,null,null,null,null,null,"Núm. de expte.:"]
[null,"Denominación da obra:",null,null,null,null,null,null,null,null,null,"Municipio:"]
[null,"Tipo de certificación: (marcar cun X)",null,"Ordinaria:",null,null,"Anticipada:",null,null,null,null,"Núm. Certif.:"]
[]
[null,"2. DATOS DA ADXUDICACIÓN"]
[]
[null,null,null,null,"Orzamento de execución por contrata",null,"Orzamento de adxudicación",null,"% de baixa",{"$f":"IF(AND(E23=0,G23=0),\"\",I23/E23*100)","v":""},null,"Melloras"]
[null,null,null,null,null,null,null,null,"Importe baixa",null,null,"Data de aprob.\nde expte."]
[null,"A.- INICIAL","1ª Anual (         )",null,null,null,null,null,{"$f":"$E19-$G19","v":0},null,null,"Data adx."]
[null,"Desagregar","2ª Anual (         )",null,null,null,null,null,{"$f":"$E20-$G20","v":0},null,null,"Data formaliz."]
[null,"por","3ª Anual (         )",null,null,null,null,null,{"$f":"$E21-$G21","v":0},null,null,"Data replanteo"]
[null,"anualidades","4ª Anual (         )",null,null,null,null,null,{"$f":"$E22-$G22","v":0},null,null,"Prazo exec."]
[null,"TOTAL",null,null,{"$f":"SUM(E19:F22)","v":0},null,{"$f":"SUM(G19:H22)","v":0},null,{"$f":"$E23-$G23","v":0},null,null,"Data finaliz."]
[]
[null,"B.- MODIFICADO",null,null,null,null,null,null,null,null,null,"Data adx."]
[null,"Anualidade ( _______ )",null,null,null,null,null,null,null,null,null,"Data formaliz."]
[]
[null,"C.- DIFERENZA (B-A)"]
[null,"Prórroga concedida:",null,null,"Si",null,"Non"]
[null,"Data final da obra prorrogada:"]
[null,"Prorrogas:"]
[]
[null,"3.- DATOS DA CERTIFICACIÓN"]
[null,"D/Dª. __________________________, coa titulación de ENXEÑEIRO DE CAMIÑOS, CANLES E PORTOS da Deputación Provincial de Pontevevdra, como "]
[null,"técnico director da obra:",{"$f":"IF(C12=\"\",\"\",$C$12)","v":""}]
[null,"CERTIFICO QUE: "]
[null,"1.- O importe das obras executadas durante o período comprendido entre o",null,null,null,null,null,null,null,"e o",null,null,", e que"]
[null,"ascende á cantidade de",{"$f":"IF(C47=0,0,C47)","v":""},null,null,null,null,null,null,null,null,null,"euros."]
[]
[null,"2.- As obras executáronse de acordo co proxecto e co contrato formalizado, 1agás as unidades excutadas corespondentes á/ás anualidade/s futura/s."]
[]
[null,"SOBRE ORZAMENTO","OBRA EXECUTADA",null,null,null,"OBRA EXECUTADA ",null,null,null,"OBRA PENDENTE DE"]
[null,null,"NO PERÍODO",null,null,null,"ANTERIORMENTE",null,null,null,"EXECUTAR"]
[null,"De licitación",{"$f":"IF(FINAL!J11=\"\",\"\",ROUND(FINAL!$J$11*1.4399,2))","v":""},null,null,null,null,null,null,null,{"$f":"IF(FINAL!J11=\"\",\"\",E$23-C44-G44)","v":""}]
[null,"De adxudicación",{"$f":"IF(FINAL!J18=\"\",\"\",ROUND(IF(FINAL!$J$18=0,0,FINAL!$J$18),2))","v":""},null,null,null,null,null,null,null,{"$f":"IF(FINAL!J18=\"\",\"\",G$23-C45-G45)","v":""}]
[null,"LIQUIDACIÓN IVE","Base:",null,null,null,"Importe IVE:",null,null,null,"Total certificación:"]
[null,"(Tipo impositivo  21 % )",{"$f":"IF(FINAL!$J$16=0,0,FINAL!$J$16)","v":""},null,null,null,{"$f":"IF(FINAL!$J$17=0,0,FINAL!$J$17)","v":""},null,null,null,{"$f":"IF(AND(K44=\"\",K45=\"\"),\"\",$C$47+$G$47)","v":""}]
[]
[null,"E para que así conste e lle sirva de aboamento a conta ó contratista, expido a presente certificación por un importe, IVE incluído, de"]
[null,{"$f":"IF(L50=\"\",\"\",NumeroLetra(L50))","v":""},null,null,null,null,null,null,null,null,",",{"$f":"IF(K47=\"\",\"\",ROUND($K$47,2))","v":""}]
[]
[null,"SINATURA"]
[null,"Data:",null,null,null,null,"Asdo.: o/a director da obra"]
[]
[]
[]
[null,"Pontevedra,___________________________",null,null,null,null,{"$f":"MID(B34,SEARCH(\".\",B34,1)+1,SEARCH(\",\",B34,1)-SEARCH(\".\",B34,1)-1)","v":" __________________________"}]
[null,"1 So no caso de certificacion anticipada"]
[null,null,null,null,null,null,null,null,null,null,null,null,"Mod. 100.003"]

{"sheet":"RELACIÓN VALORADA","index":1,"n_rows":22,"n_cols":10,"rows_kept":22,"cut":false,"hidden":false,"merged":[[18,3,18,6],[19,0,56,0],[19,1,19,8],[6,1,6,9],[9,2,9,3],[9,4,9,6],[10,1,10,2],[10,3,10,9],[12,7,14,7],[12,8,14,8],[12,9,14,9],[11,1,11,9],[12,1,14,1],[12,2,14,6],[15,2,15,8],[16,3,16,6],[17,3,17,6],[0,1,4,1],[0,2,0,3],[0,6,0,9],[1,2,1,3],[2,2,2,3],[3,2,3,3],[4,2,4,3]]}
[]
[]
[]
[]
[]
[]
[null,"CERTIFICACIÓN DE OBRA"]
[]
[]
[null,"Certificación núm.: ",{"$f":"IF(CERTIFICACIÓN!M13=\"\",\"\",CERTIFICACIÓN!M13)","v":""},null,"Período o que corresponde entre o",null,null,{"$f":"IF(CERTIFICACIÓN!H37=\"\",\"\",CERTIFICACIÓN!H37)","v":""},"e o",{"$f":"IF(CERTIFICACIÓN!L37=\"\",\"\",CERTIFICACIÓN!L37)","v":""}]
[null,"Relación valorada da obra:",null,{"$f":"IF(CERTIFICACIÓN!C12=\"\",\"\",CERTIFICACIÓN!C12)","v":""}]
[]
[null,"UNIDADES DE OBRA EN PROXECTO","DESCRICIÓN",null,null,null,null,"UNIDADES DE OBRA EXECUTADAS","PRECIOS UNITARIOS","IMPORTE EUROS"]
[]
[]
["Conforme o disposto na Lei orgánica 15/1999, do 13 de decembro, de protección de datos de carácter persoal, os seus datos serán tratados de xeito confidencial. Poderán ser incorporados ós ficheiros dos departamentos da Deputación Provincial de Pontevedra e a outros relacionados con este trámite. En calquera momento poderá exercitar os dereitos de acceso, cancelación, rectificación e oposición comunicándoo mediante escrito, que deberá presentar no Rexistro da Deputación."]
[]
[]
[]
[null,"SUMA EXECUCION MATERIAL",null,null,null,null,null,null,null,{"$f":"SUM(J17:J19)","v":0}]
[]
[null,null,null,null,null,null,null,null,null,"Mod. 100.003"]

{"sheet":"FINAL","index":2,"n_rows":41,"n_cols":10,"rows_kept":41,"cut":false,"hidden":false,"merged":[[6,0,45,0],[0,1,4,1],[0,2,0,3],[0,6,0,9],[1,2,1,3],[2,2,2,3],[3,2,3,3],[4,2,4,3],[6,1,6,9],[7,1,7,9],[8,1,8,8],[9,1,9,8],[10,1,10,8],[11,1,11,8],[12,1,12,8],[13,1,13,8],[14,1,14,8],[15,1,15,8],[16,1,16,8],[17,1,17,8],[18,1,18,9],[19,1,19,9],[20,1,20,9],[21,1,21,2],[21,4,21,5],[22,1,22,2],[22,4,22,5],[23,1,23,2],[23,4,23,5],[38,2,38,3],[38,5,38,7],[24,1,24,2],[24,4,24,5],[25,1,30,9],[33,1,36,3],[33,4,37,7],[33,8,37,9],[37,2,37,3],[31,1,31,3]]}
[]
[]
[]
[]
[]
[]
["Conforme o disposto na Lei orgánica 15/1999, do 13 de decembro, de protección de datos de carácter persoal, os seus datos serán tratados de xeito confidencial. Poderán ser incorporados ós ficheiros dos departamentos da Deputación Provincial de Pontevedra e a outros relacionados con este trámite. En calquera momento poderá exercitar os dereitos de acceso, cancelación, rectificación e oposición comunicándoo mediante escrito, que deberá presentar no Rexistro da Deputación.","CERTIFICACIÓN DE OBRA"]
[]
[null,"(1) TOTAL ORZAMENTO EXECUCIÓN MATERIAL ....................................................................................................................",null,null,null,null,null,null,null,{"$f":"'RELACIÓN VALORADA'!J20","v":0}]
[null,"(2) A DEDUCIR: TOTAL P.E.M. CERTIFICADO ANTERIORMENTE ..........................................................................................."]
[null,"(3) = (1) – (2) TOTAL P.E.M. PRESENTE CERTIFICACIÓN (a prezo de licitación)...............................................................",null,null,null,null,null,null,null,{"$f":"IF(J10=\"\",\"\",J9-J10)","v":""}]
[null,"(4) BAIXA DE ADXUDICACIÓN .....................................................................................................................................",null,null,null,null,null,null,null,{"$f":"IF(CERTIFICACIÓN!J17=\"\",\"\",ROUND($J$11*CERTIFICACIÓN!$J$17/100,2))","v":""}]
[null,"(5) = (3) – (4) TOTAL P.E.M. PRESENTE CERTIFICACIÓN (a prezo de adxudicación) ..................................................",null,null,null,null,null,null,null,{"$f":"IF(CERTIFICACIÓN!J17=\"\",\"\",$J$11-$J$12)","v":""}]
[null,"(6) 13% s/(5) GASTOS XERAIS .....................................................................................................................................",null,null,null,null,null,null,null,{"$f":"IF(CERTIFICACIÓN!J17=\"\",\"\",ROUND($J$13*0.13,2))","v":""}]
[null,"(7) 6% s/(5) BENEFICIO INDUSTRIAL ..........................................................................................................................",null,null,null,null,null,null,null,{"$f":"IF(CERTIFICACIÓN!J17=\"\",\"\",ROUND($J$13*0.06,2))","v":""}]
[null,"(8) = (5) + (6) + (7) SUMA ............................................................................................................................................",null,null,null,null,null,null,null,{"$f":"IF(CERTIFICACIÓN!J17=\"\",\"\",SUM($J$13:$J$15))","v":""}]
[null,"(9) 21% s/(8) IVE PRESENTE CERTIFICACIÓN .............................................................................................................",null,null,null,null,null,null,null,{"$f":"IF(CERTIFICACIÓN!J17=\"\",\"\",ROUND($J$16*0.21,2))","v":""}]
[null,"(10) = (8) + (9) TOTAL ORZAMENTO ADXUDICACIÓN DA PRESENTE CERTIFICACIÓN ..............................................",null,null,null,null,null,null,null,{"$f":"IF(CERTIFICACIÓN!J17=\"\",\"\",$J$16+$J$17)","v":""}]
[]
[null,"No caso de certificación anticipada o contratista adxudicatario acepta que o importe acreditado nesta certifiación, que excede da anualidade correspondente a este ano en curso, sexa aboado no exercicio que, de acordo co contrato, terían que ser executadas as unidades de obra excedidas e sen esixir interese de demora. A execución anticipada produciuse coa autorización do seu director/a."]
[]
[null,"RETENCIÓNS",null,"Concepto","Base",null,"X","Coeficiente","=","Total"]
[null,1,null,"Taxa Dirección Obra \n(5)= PEM a prezo de adxudicación",{"$f":"IF(H23=\"\",\"\",$J$13)","v":""},null,"x",0.04,"=",{"$f":"IF(E23=\"\",\"\",ROUND(IF(AND(E24=\"\",H24=\"\"),\"\",E23*H23),2))","v":""}]
[null,2,null,"Control de Calidade\n(3)= PEM a prezo de licitación",{"$f":"IF(H24=\"\",\"\",$J$11)","v":""},null,"x",0.03,"=",{"$f":"IF(E24=\"\",\"\",ROUND(IF(AND(E24=\"\",H24=\"\"),\"\",$E$24*$H$24),2))","v":""}]
[null,3,null,"Seguridade e Saúde\n(3)= PEM a prezo de licitación",null,null,"x",null,"=",{"$f":"IF(H25=\"\",\"\",$E$25*$H$25)","v":""}]
[]
[]
[]
[]
[]
[]
[null,"SINATURA"]
[null,"Asdo.: o/a contratista",null,null,"Asdo.: o/a director/a de execución de obra",null,null,null,"Asdo.: o/a director da obra"]
[]
[]
[]
[]
[null,"NIF:"]
[null,"Nome:",null,null,"Nome:",null,null,null,"Nome:",{"$f":"CERTIFICACIÓN!G57","v":" __________________________"}]
[]
[null,null,null,null,null,null,null,null,null,"Mod. 100.003"]